lending/lending_fUSD_20240711
["ID","MTS","AMOUNT","RATE_DAILY","PERIOD"]
[331730486,1720708778194,-1180.33,0.00013698,2]
[331730487,1720708778214,-929.32,0.00013698,2]
[331730488,1720708778236,-500.0,0.00013698,2]
[331730489,1720708778261,-500.0,0.00013698,2]
[331730490,1720708778281,-1827.84,0.00013699,2]
[331730491,1720708778303,-1641.77633,0.000137,2]
[331730492,1720708778327,-900.0,0.00013726,2]
[331730493,1720708778349,-900.0,0.00013726,2]
[331730494,1720708778374,-12058.38227396,0.00013736,2]
[331730495,1720708778395,-918.56,0.00013753,2]
[331730496,1720708778417,-1138.41,0.00013753,2]
[331730497,1720708778438,-957.68,0.00013753,2]
[331730498,1720708778460,-1384.31,0.00013753,2]
[331730499,1720708778481,-838.81,0.00013753,2]
[331730500,1720708778502,-1118.19,0.00013753,2]
[331730501,1720708778524,-881.41,0.00013753,2]
[331730502,1720708778546,-1000.69,0.00013753,2]
[331730503,1720708778567,-653.26,0.00013753,2]
[331730504,1720708778588,-1257.63,0.00013753,2]
[331730505,1720708778609,-500.0,0.00013753,2]
[331730506,1720708778630,-1253.77,0.00013753,2]
[331730507,1720708778732,-1249.37,0.00013753,2]
[331730508,1720708778753,-940.83,0.00013753,2]
[331730509,1720708778775,-318.92,0.00013753,7]
[331730510,1720708778796,-500.0,0.00013753,2]
[331730511,1720708778816,-1100.4,0.00013753,2]
[331730512,1720708778839,-500.0,0.00013753,2]
[331730513,1720708778861,-1045.7,0.00013753,2]
[331730514,1720708778881,-1035.2,0.00013753,2]
[331730515,1720708778902,-913.45,0.00013753,2]
[331730516,1720708778923,-500.0,0.00013753,2]
[331730517,1720708778944,-1180.33,0.00013753,2]
[331730518,1720708778965,-929.32,0.00013753,2]
[331730519,1720708778986,-500.0,0.00013753,2]
[331730520,1720708779006,-500.0,0.00013753,2]
[331730521,1720708779036,-213.14294652,0.00013757,2]
[331730522,1720708779058,-10526.14461455,0.00013759,2]
[331730523,1720708779079,-252.02,0.00013781,3]
[331730524,1720708779101,-152.0,0.00013784,5]
[331730525,1720708779125,-251.1,0.00013789,2]
[331730526,1720708779149,-609.28216188,0.0001379,2]
[331730527,1720708779173,-609.28216188,0.0001379,2]
[331730528,1720708779196,-609.28216188,0.0001379,2]
[331730529,1720708779221,-609.28216188,0.0001379,2]
[331730530,1720708779244,-609.28216188,0.0001379,2]
[331730531,1720708779268,-609.28216188,0.0001379,2]
[331730532,1720708779289,-609.28216188,0.0001379,2]
[331730533,1720708779310,-609.28216188,0.0001379,2]
[331730534,1720708779332,-609.28216188,0.0001379,2]
[331730535,1720708779357,-159.77421102,0.00013799,2]
[331730536,1720708779382,-159.77421102,0.00013799,2]
[331730537,1720708779403,-159.77421102,0.00013799,2]
[331730538,1720708779426,-159.77421102,0.00013799,2]
[331730539,1720708779500,945.89130315,0.00012302,2]
[331730541,1720708790841,155.0,0.00012302,2]
[331730542,1720708796634,712.96,0.00013698,2]
[331730543,1720708796930,712.96,0.00013753,2]
[331730544,1720708800521,155.0,0.00013759,2]
[331730545,1720708801482,889.4041679,0.00013574,2]
[331730546,1720708801795,811.27,0.00013698,2]
[331730547,1720708802170,811.27,0.00013753,2]
[331730549,1720708808074,2000.0,0.00013799,2]
[331730551,1720708810102,258.71339457,0.00013771,2]
[331730552,1720708815989,4260.1424,0.000128,2]
[331730553,1720708817552,412.68768462,0.00013574,2]
[331730554,1720708818893,293.82961333,0.00013574,2]
[331730555,1720708819898,200.0,0.00013799,2]
[331730556,1720708822658,258.75146544,0.00013574,2]
[331730557,1720708822691,500.0,0.00013698,2]
[331730558,1720708822939,500.0,0.00013753,2]
[331730559,1720708823983,2739.85954278,0.00013574,2]
[331730560,1720708824230,1163.66,0.00013698,2]
[331730561,1720708824504,1163.66,0.00013753,2]
[331730562,1720708825128,1047.10517,0.00013799,2]
[331730563,1720708825482,1500.0,0.00013574,2]
[331730564,1720708825813,400.46,0.00011005,2]
[331730565,1720708826188,1129.38,0.00013698,2]
[331730566,1720708826222,400.46,0.00013269,2]
[331730567,1720708826474,1129.38,0.00013753,2]
[331730568,1720708826680,600.0,0.0001126,2]
[331730569,1720708826718,857.79066388,0.00013574,2]
[331730570,1720708827921,316.0773283,0.00013574,2]
[331730571,1720708828825,600.0,0.00012082,2]
[331730572,1720708829072,239.85212355,0.00013574,2]
[331730573,1720708830282,155.0,0.00013574,2]
[331730574,1720708830863,150.0,0.00023093,120]
[331730575,1720708831328,600.0,0.00012904,2]
[331730576,1720708833149,600.0,0.00013726,2]
[331730577,1720708833508,10526.14461455,0.00013574,2]
[331730578,1720708834877,1154.84,0.00013698,2]
[331730579,1720708835161,1154.84,0.00013753,2]
[331730580,1720708837596,719.15,0.00013698,2]
[331730581,1720708837878,719.15,0.00013753,2]
[331730582,1720708844877,7607.8268,0.000128,2]
[331730583,1720708846051,500.0,0.00013698,2]
[331730584,1720708846375,500.0,0.00013753,2]
[331730585,1720708850006,849.14809043,0.00013574,2]
[331730587,1720708854705,1462.27,0.00013699,2]
[331730588,1720708855444,236.41441123,0.00013753,2]
[331730589,1720708856069,159.77421102,0.00013799,2]
[331730590,1720708859983,250.0,0.00013699,2]
[331730591,1720708860172,1400.48,0.00013698,2]
[331730592,1720708860391,500.0,0.0001126,2]
[331730593,1720708860433,1400.48,0.00013753,2]
[331730594,1720708862035,500.0,0.00012904,2]
[331730595,1720708862490,545.17040512,0.0001126,2]
[331730596,1720708863450,700.0,0.0001126,2]
[331730597,1720708865070,700.0,0.00012082,2]
[331730598,1720708867280,700.0,0.00012904,2]
[331730599,1720708867929,547.25877,0.00013799,2]
[331730600,1720708869319,700.0,0.00013726,2]
[331730601,1720708873381,266.62300381,0.00013759,2]
[331730602,1720708875695,310.46457555,0.00013698,2]
[331730603,1720708876333,1118.4259,0.0001378,2]
[331730607,1720708889966,768.91,0.00013698,2]
[331730608,1720708890237,768.91,0.00013753,2]
[331730609,1720708892107,150.0,0.00021899,120]
[331730610,1720708910756,872.58764,0.00013799,2]
[331730611,1720708921790,213.14294652,0.00013782,2]
[331730612,1720708921818,1030.53,0.00013698,2]
[331730613,1720708922190,1030.53,0.00013753,2]
[331730616,1720708950228,500.0,0.00013698,2]
[331730617,1720708950897,500.0,0.00013753,2]
[331730619,1720708954074,456.04898,0.00013799,2]
[331730620,1720708964667,500.0,0.00013698,2]
[331730621,1720708964976,500.0,0.00013753,2]
[331730623,1720708991635,500.0,0.00013698,2]
[331730624,1720708992229,500.0,0.00013753,2]
[331730625,1720708993710,500.0,0.00013698,2]
[331730626,1720708993996,276.06,0.00013753,2]
[331730627,1720708996808,727.15637,0.00013799,2]
[331730631,1720709026839,1254.12246239,0.00013759,2]
[331730632,1720709038678,152.32054047,0.0001379,2]
[331730633,1720709039614,380.04081,0.00013799,2]
[331730634,1720709054359,14807.83021257,0.00013736,2]
[331730635,1720709060415,500.0,0.00013698,2]
[331730636,1720709060698,264.99,0.00013753,2]
[331730638,1720709062446,504.5624,0.00013765,2]
[331730640,1720709095905,1325.34,0.00013698,2]
[331730641,1720709096181,1325.34,0.00013753,2]
[331730642,1720709097590,1288.33484564,0.00013759,2]
[331730643,1720709108597,1288.33484564,0.00013759,2]
[331730644,1720709110839,605.96364,0.00013799,2]
[331730645,1720709114389,200.0,0.00012912,2]
[331730646,1720709120617,1047.43,0.00013698,2]
[331730647,1720709120891,1047.43,0.00013753,2]
[331730648,1720709126383,942.58,0.00013698,2]
[331730649,1720709126735,942.58,0.00013753,2]
[331730651,1720709133372,1157.79,0.00013698,2]
[331730652,1720709133635,1157.79,0.00013753,2]
[331730653,1720709140845,1211.24,0.00013698,2]
[331730654,1720709141128,1211.24,0.00013753,2]
[331730656,1720709150101,1068.17,0.00013698,2]
[331730657,1720709150360,1068.17,0.00013753,2]
[331730658,1720709151902,423.57927115,0.00013698,2]
[331730659,1720709153610,316.70068,0.00013799,2]
[331730661,1720709178399,1008.7,0.00013698,2]
[331730662,1720709178680,1329.53,0.00013698,2]
[331730663,1720709178709,1008.7,0.00013753,2]
[331730664,1720709178945,1329.53,0.00013753,2]
[331730665,1720709187421,155.0,0.00013759,2]
[331730666,1720709191569,1240.61,0.00013698,2]
[331730667,1720709191791,629.7,0.00013779,2]
[331730668,1720709191860,1240.61,0.00013753,2]
[331730669,1720709196474,504.9697,0.00013799,2]
[331730670,1720709203488,1064.71,0.00013698,2]
[331730671,1720709203739,1064.71,0.00013753,2]
[331730672,1720709210374,276.15184313,0.00013759,2]
[331730673,1720709224372,1357.6108,0.00013763,2]
[331730676,1720709226815,500.0,0.00013698,2]
[331730677,1720709227070,500.0,0.00013753,2]
[331730678,1720709236879,1521.18,0.00013698,2]
[331730679,1720709237520,1521.18,0.00013753,2]
[331730681,1720709258002,250.0,0.00012913,2]
[331730682,1720709264914,1272.25517096,0.00013759,2]
[331730683,1720709266233,263.91723,0.00013799,2]
[331730684,1720709273723,240.7,0.00012913,2]
[331730685,1720709283366,717.29122203,0.00013759,2]
[331730686,1720709291440,314.25,0.00027,120]
[331730687,1720709296090,500.0,0.00027,120]
[331730688,1720709297814,517.42678915,0.00013488,2]
[331730690,1720709301200,500.0,0.00027,120]
[331730692,1720709306949,500.0,0.00027,120]
[331730693,1720709309042,420.80808,0.00013799,2]
[331730694,1720709312873,500.0,0.00027,120]
[331730695,1720709317550,1090.5,0.00013698,2]
[331730696,1720709317889,1090.5,0.00013753,2]
[331730698,1720709321198,500.0,0.00027,120]
[331730699,1720709325464,500.0,0.00027,120]
[331730700,1720709325850,527.60194171,0.00013698,2]
[331730702,1720709330269,500.0,0.00027,120]
[331730703,1720709335208,500.0,0.00027,120]
[331730705,1720709339586,500.0,0.00027,120]
[331730722,1720709350885,348.7364024,0.00013753,2]
[331730723,1720709350970,168.03464583,0.00013753,2]
[331730724,1720709351834,219.93103,0.00013799,2]
[331730726,1720709366415,500.0,0.00027,120]
[331730727,1720709373844,500.0,0.00027,120]
[331730728,1720709379289,395.74,0.00011014,2]
[331730729,1720709379547,395.74,0.00013278,2]
[331730732,1720709384305,653.55,0.00013698,2]
[331730733,1720709384582,653.55,0.00013753,2]
[331730734,1720709385034,500.0,0.00027,120]
[331730735,1720709391327,500.0,0.00027,120]
[331730736,1720709393039,368.80500075,0.00013759,2]
[331730737,1720709394648,350.6734,0.00013799,2]
[331730738,1720709396178,500.0,0.00027,120]
[331730739,1720709401126,500.0,0.00027,120]
[331730740,1720709407161,500.0,0.00027,120]
[331730741,1720709410306,1066.69,0.00013698,2]
[331730742,1720709410633,1066.69,0.00013753,2]
[331730743,1720709411807,500.0,0.00027,120]
[331730744,1720709416962,500.0,0.00027,120]
[331730745,1720709418893,152.32054047,0.0001379,2]
[331730746,1720709426430,500.0,0.00027,120]
[331730749,1720709432772,-300.0,0.00013807,2]
[331730750,1720709432782,-1045.7,0.00013808,2]
[331730751,1720709432792,-1035.2,0.00013808,2]
[331730752,1720709432802,-913.45,0.00013808,2]
[331730753,1720709432815,-1180.33,0.00013808,2]
[331730754,1720709432825,-929.32,0.00013808,2]
[331730755,1720709432835,-500.0,0.00013808,2]
[331730756,1720709432845,-811.27,0.00013808,2]
[331730757,1720709432855,-1129.38,0.00013808,2]
[331730758,1720709432865,-1154.84,0.00013808,2]
[331730759,1720709432875,-719.15,0.00013808,2]
[331730760,1720709432885,-500.0,0.00013808,2]
[331730761,1720709432895,-1400.48,0.00013808,2]
[331730762,1720709432905,-768.91,0.00013808,2]
[331730763,1720709432915,-1030.53,0.00013808,2]
[331730764,1720709432925,-500.0,0.00013808,2]
[331730765,1720709432934,-1325.34,0.00013808,2]
[331730766,1720709432944,-1047.43,0.00013808,2]
[331730767,1720709432955,-942.58,0.00013808,2]
[331730768,1720709432964,-1157.79,0.00013808,2]
[331730769,1720709432975,-1211.24,0.00013808,2]
[331730770,1720709432984,-1068.17,0.00013808,2]
[331730771,1720709432994,-1008.7,0.00013808,2]
[331730772,1720709433003,-1329.53,0.00013808,2]
[331730773,1720709433013,-1240.61,0.00013808,2]
[331730774,1720709433022,-1064.71,0.00013808,2]
[331730775,1720709433032,-1521.18,0.00013808,2]
[331730776,1720709433042,-1090.5,0.00013808,2]
[331730777,1720709433052,-653.55,0.00013808,2]
[331730778,1720709433066,-378.25799999,0.00013808,2]
[331730783,1720709437511,500.0,0.00027,120]
[331730786,1720709439538,-688.43200001,0.00013808,2]
[331730787,1720709439547,-183.27585,0.00013808,2]
[331730788,1720709439558,-1073.0,0.00013813,2]
[331730789,1720709439573,-152.32054047,0.0001384,2]
[331730790,1720709439585,-1014.63381541,0.00013849,2]
[331730791,1720709439594,-623.87688112,0.0001385,2]
[331730792,1720709439607,-1048.53174572,0.0001385,2]
[331730793,1720709439618,-884.28338425,0.0001385,2]
[331730794,1720709439630,-5649.53764994,0.0001385,2]
[331730795,1720709439642,-2123.93814826,0.0001385,2]
[331730796,1720709439662,-816.07128584,0.0001385,2]
[331730797,1720709439674,-5325.76545771,0.0001385,2]
[331730798,1720709439685,-1220.15595404,0.0001385,2]
[331730799,1720709439697,-3180.7408274,0.0001385,2]
[331730800,1720709439708,-256.8242,0.0001385,2]
[331730801,1720709439719,-14904.09802953,0.0001385,2]
[331730802,1720709439788,-31562.41963906,0.0001385,2]
[331730803,1720709439800,-653.67901261,0.0001385,2]
[331730804,1720709439811,-569.78816292,0.0001385,2]
[331730808,1720709440532,-19091.0196216,0.0001385,2]
[331730810,1720709440542,-199.12,0.00013857,2]
[331730812,1720709440551,-567.05550593,0.00013863,2]
[331730813,1720709440634,-478.64449407,0.00013863,2]
[331730814,1720709440644,-1035.2,0.00013863,2]
[331730815,1720709440654,-913.45,0.00013863,2]
[331730816,1720709440666,-1180.33,0.00013863,2]
[331730817,1720709440675,-929.32,0.00013863,2]
[331730818,1720709440686,-500.0,0.00013863,2]
[331730819,1720709440695,-811.27,0.00013863,2]
[331730820,1720709440705,-1129.38,0.00013863,2]
[331730821,1720709440714,-1154.84,0.00013863,2]
[331730822,1720709440723,-719.15,0.00013863,2]
[331730823,1720709440733,-500.0,0.00013863,2]
[331730824,1720709440743,-1400.48,0.00013863,2]
[331730825,1720709440753,-768.91,0.00013863,2]
[331730826,1720709440761,-671.79582255,0.00013863,2]
[331730827,1720709440773,-358.73417745,0.00013863,2]
[331730828,1720709440782,-500.0,0.00013863,2]
[331730829,1720709440792,-1325.34,0.00013863,2]
[331730830,1720709440801,-631.50828086,0.00013863,2]
[331730831,1720709440814,-415.92171914,0.00013863,2]
[331730832,1720709440825,-942.58,0.00013863,2]
[331730833,1720709440834,-1157.79,0.00013863,2]
[331730834,1720709440844,-1211.24,0.00013863,2]
[331730835,1720709440853,-1068.17,0.00013863,2]
[331730836,1720709440862,-1008.7,0.00013863,2]
[331730837,1720709440872,-1329.53,0.00013863,2]
[331730838,1720709440881,-1240.61,0.00013863,2]
[331730839,1720709440891,-1064.71,0.00013863,2]
[331730840,1720709440900,-1521.18,0.00013863,2]
[331730841,1720709440911,-1090.5,0.00013863,2]
[331730842,1720709440921,-653.55,0.00013863,2]
[331730843,1720709440931,-1066.69,0.00013863,2]
[331730844,1720709440941,-500.0,0.00013865,2]
[331730845,1720709440951,-500.0,0.00013874,2]
[331730846,1720709440960,-1025.01,0.00013879,2]
[331730847,1720709440970,-807.96,0.00013879,2]
[331730848,1720709440980,-598.82,0.00013879,2]
[331730849,1720709440990,-1145.26,0.00013879,2]
[331730850,1720709440999,-842.01,0.00013879,2]
[331730851,1720709441097,-1043.55,0.00013879,2]
[331730852,1720709441113,-1268.95,0.00013879,2]
[331730853,1720709441123,-877.87,0.00013879,2]
[331730854,1720709441132,-500.0,0.00013879,2]
[331730855,1720709441142,-500.0,0.00013879,2]
[331730856,1720709441151,-917.3,0.00013879,2]
[331730857,1720709441162,-1152.82,0.00013879,2]
[331730858,1720709441172,-1149.29,0.00013879,2]
[331730859,1720709441182,-862.43,0.00013879,2]
[331730860,1720709441193,-292.34,0.00013879,7]
[331730861,1720709441203,-173547.48849244,0.0001388,2]
[331730862,1720709441241,-436.0661831,0.0001388,2]
[331730863,1720709441253,-2677.6630165,0.0001388,2]
[331730864,1720709441268,-1739.47117996,0.0001388,2]
[331730865,1720709441279,-3099.33733497,0.0001388,2]
[331730866,1720709441319,-580.61214365,0.0001388,2]
[331730921,1720709442205,500.0,0.00027,120]
[331730977,1720709443787,-28240.08299187,0.0001388,2]
[331730978,1720709444005,-1485.65000001,0.0001388,2]
[331730979,1720709444118,-2123.69096423,0.0001388,2]
[331730980,1720709444310,-313.20510726,0.0001388,2]
[331731018,1720709446656,-18200.61749257,0.0001388,2]
[331731019,1720709446666,-500.0,0.00013882,2]
[331731020,1720709446676,-500.0,0.00013887,2]
[331731021,1720709446686,-500.0,0.00013888,2]
[331731022,1720709446695,-200.0,0.00013888,2]
[331731023,1720709446705,-165.52593635,0.0001389,2]
[331731024,1720709446715,-170.57408453,0.0001389,2]
[331731025,1720709446724,-2223.79266819,0.0001389,2]
[331731026,1720709446825,-500.0,0.00013891,2]
[331731027,1720709446835,-165.52593634,0.000139,2]
[331731028,1720709446846,-170.57408453,0.000139,2]
[331731029,1720709446857,-500.0,0.000139,2]
[331731030,1720709446866,-10000.0,0.000139,2]
[331731031,1720709446877,-152.32054047,0.000139,2]
[331731032,1720709446886,-7500.0,0.000139,2]
[331731033,1720709446896,-1045.7,0.00013917,2]
[331731034,1720709446907,-1035.2,0.00013917,2]
[331731035,1720709446917,-913.45,0.00013917,2]
[331731036,1720709446926,-1180.33,0.00013917,2]
[331731037,1720709446936,-929.32,0.00013917,2]
[331731038,1720709446945,-500.0,0.00013917,2]
[331731039,1720709446954,-811.27,0.00013917,2]
[331731040,1720709446965,-1129.38,0.00013917,2]
[331731041,1720709446975,-1154.84,0.00013917,2]
[331731042,1720709446984,-719.15,0.00013917,2]
[331731043,1720709446994,-500.0,0.00013917,2]
[331731044,1720709447003,-1400.48,0.00013917,2]
[331731045,1720709447013,-768.91,0.00013917,2]
[331731046,1720709447023,-1030.53,0.00013917,2]
[331731047,1720709447032,-500.0,0.00013917,2]
[331731048,1720709447041,-1325.34,0.00013917,2]
[331731049,1720709447051,-1047.43,0.00013917,2]
[331731050,1720709447060,-528.54210322,0.00013917,2]
[331731051,1720709447076,-414.03789678,0.00013917,2]
[331731052,1720709447087,-1071.96210322,0.00013917,2]
[331731053,1720709447098,-85.82789678,0.00013917,2]
[331731054,1720709447107,-367.17210322,0.00013917,2]
[331731055,1720709447119,-844.06789678,0.00013917,2]
[331731056,1720709447128,-1068.17,0.00013917,2]
[331731057,1720709447137,-1008.7,0.00013917,2]
[331731058,1720709447146,-1329.53,0.00013917,2]
[331731059,1720709447155,-1240.61,0.00013917,2]
[331731060,1720709447165,-1064.71,0.00013917,2]
[331731061,1720709447174,-1521.18,0.00013917,2]
[331731062,1720709447185,-1090.5,0.00013917,2]
[331731063,1720709447194,-653.55,0.00013917,2]
[331731064,1720709447203,-1066.69,0.00013917,2]
[331731065,1720709447213,-1090.761,0.0001392,2]
[331731066,1720709447222,-1072.852,0.0001392,2]
[331731068,1720709447232,-150.492,0.0001392,2]
[331731070,1720709447242,-1025.01,0.00013934,2]
[331731072,1720709447251,-807.96,0.00013934,2]
[331731074,1720709447261,-598.82,0.00013934,2]
[331731076,1720709447271,-1145.26,0.00013934,2]
[331731078,1720709447280,-842.01,0.00013934,2]
[331731080,1720709447290,-1043.55,0.00013934,2]
[331731081,1720709447299,-1268.95,0.00013934,2]
[331731082,1720709447308,-877.87,0.00013934,2]
[331731083,1720709447318,-500.0,0.00013934,2]
[331731084,1720709447332,-500.0,0.00013934,2]
[331731085,1720709447341,-917.3,0.00013934,2]
[331731086,1720709447351,-1152.82,0.00013934,2]
[331731087,1720709447361,-1149.29,0.00013934,2]
[331731088,1720709447371,-862.43,0.00013934,2]
[331731089,1720709447380,-292.34,0.00013934,7]
[331731090,1720709447389,-2000.0,0.00013937,2]
[331731091,1720709447398,-200.0,0.00013937,2]
[331731092,1720709447408,-1073.0,0.00013955,2]
[331731093,1720709447418,-173.27,0.00013972,2]
[331731094,1720709447427,-1045.7,0.00013972,2]
[331731095,1720709447436,-1035.2,0.00013972,2]
[331731096,1720709447447,-913.45,0.00013972,2]
[331731097,1720709447457,-1180.33,0.00013972,2]
[331731098,1720709447466,-929.32,0.00013972,2]
[331731099,1720709447475,-317.9,0.00013972,2]
[331731100,1720709447484,-811.27,0.00013972,2]
[331731101,1720709447494,-1129.38,0.00013972,2]
[331731102,1720709447503,-1154.84,0.00013972,2]
[331731103,1720709447513,-719.15,0.00013972,2]
[331731104,1720709447524,-500.0,0.00013972,2]
[331731105,1720709447533,-1400.48,0.00013972,2]
[331731106,1720709447543,-768.91,0.00013972,2]
[331731107,1720709447553,-1030.53,0.00013972,2]
[331731108,1720709447562,-500.0,0.00013972,2]
[331731109,1720709447580,-1325.34,0.00013972,2]
[331731110,1720709447589,-1047.43,0.00013972,2]
[331731111,1720709447599,-942.58,0.00013972,2]
[331731112,1720709447609,-1157.79,0.00013972,2]
[331731113,1720709447618,-1211.24,0.00013972,2]
[331731114,1720709447627,-1068.17,0.00013972,2]
[331731115,1720709447637,-1008.7,0.00013972,2]
[331731116,1720709447649,-1329.53,0.00013972,2]
[331731117,1720709447659,-1240.61,0.00013972,2]
[331731118,1720709447669,-10.86074728,0.00013972,2]
[331731119,1720709447719,500.0,0.00027,120]
[331731120,1720709447750,-1053.84925272,0.00013972,2]
[331731121,1720709447759,-1521.18,0.00013972,2]
[331731122,1720709447769,-1090.5,0.00013972,2]
[331731123,1720709447779,-653.55,0.00013972,2]
[331731124,1720709447788,-1066.69,0.00013972,2]
[331731125,1720709447798,-1000.0,0.00013981,2]
[331731126,1720709447807,-1025.01,0.00013989,2]
[331731127,1720709447816,-807.96,0.00013989,2]
[331731128,1720709447828,-598.82,0.00013989,2]
[331731129,1720709447837,-1145.26,0.00013989,2]
[331731130,1720709447847,-842.01,0.00013989,2]
[331731131,1720709447856,-1043.55,0.00013989,2]
[331731132,1720709447866,-1268.95,0.00013989,2]
[331731133,1720709447876,-877.87,0.00013989,2]
[331731134,1720709447885,-500.0,0.00013989,2]
[331731135,1720709447895,-356.47538865,0.00013989,2]
[331731136,1720709447904,-917.3,0.00013989,2]
[331731137,1720709447914,-1152.82,0.00013989,2]
[331731138,1720709447923,-1149.29,0.00013989,2]
[331731139,1720709447932,-862.43,0.00013989,2]
[331731140,1720709447943,-292.34,0.00013989,7]
[331731141,1720709447953,-250000.0,0.0001399,2]
[331731142,1720709447963,-23645.8608855,0.0001399,2]
[331731143,1720709447972,-18545.3467078,0.0001399,2]
[331731144,1720709447982,-13444.8325301,0.0001399,2]
[331731145,1720709447991,-8344.3183524,0.0001399,2]
[331731146,1720709448000,-3243.8041747,0.0001399,2]
[331731147,1720709448010,-600.7143167,0.0001399,2]
[331731148,1720709448020,-600.7143167,0.0001399,2]
[331731149,1720709448029,-600.7143167,0.0001399,2]
[331731150,1720709448039,-600.7143167,0.0001399,2]
[331731151,1720709448048,-600.7143167,0.0001399,2]
[331731152,1720709448057,-349.89001083,0.00013998,2]
[331731153,1720709448066,-930.0,0.00013999,2]
[331731154,1720709448077,-130108.73881875,0.00013999,2]
[331731155,1720709448089,-5198.59756988,0.00013999,2]
[331731156,1720709448101,-324.99980446,0.00013999,2]
[331731157,1720709448112,-9647.15392051,0.00013999,2]
[331731158,1720709448123,-1304.35214237,0.00013999,2]
[331731159,1720709452862,500.0,0.00027,120]
[331731160,1720709456869,500.0,0.00027,120]
[331731161,1720709461201,500.0,0.00027,120]
[331731163,1720709471449,1169.81,0.00013699,2]
[331731166,1720709479780,500.0,0.00027,120]
[331731168,1720709485775,500.0,0.00027,120]
[331731169,1720709489939,500.0,0.00027,120]
[331731170,1720709493811,500.0,0.00027,120]
[331731173,1720709499552,500.0,0.00027,120]
[331731174,1720709508733,500.0,0.00027,120]
[331731175,1720709510560,8955.9423,0.0001378,2]
[331731176,1720709514893,500.0,0.00027,120]
[331731178,1720709547582,1892.615,0.00013708,2]
[331731179,1720709549486,2739.85954278,0.00013759,2]
[331731180,1720709550889,500.0,0.00027,120]
[331731181,1720709555002,500.0,0.00027,120]
[331731182,1720709558919,500.0,0.00027,120]
[331731183,1720709563068,500.0,0.00027,120]
[331731184,1720709567432,500.0,0.00027,120]
[331731186,1720709584443,500.0,0.00027,120]
[331731187,1720709588817,500.0,0.00027,120]
[331731188,1720709593770,500.0,0.00027,120]
[331731190,1720709598108,500.0,0.00027,120]
[331731192,1720709603274,500.0,0.00027,120]
[331731196,1720709633047,1832.38829585,0.00013759,2]
[331731197,1720709637598,186.95,0.00025,60]
[331731198,1720709666579,1071.94207496,0.00013759,2]
[331731199,1720709706819,957.77646346,0.00013759,2]
[331731201,1720709722906,348.87252662,0.00013759,2]
[331731202,1720709727166,523.47312896,0.00013759,2]
[331731203,1720709748552,1000.0,0.00013056,2]
[331731204,1720709752817,1368.16531357,0.00013759,2]
[331731205,1720709756006,2559.47257438,0.00013759,2]
[331731206,1720709769029,721.94770229,0.00013759,2]
[331731207,1720709771031,2559.47257438,0.00013759,2]
[331731208,1720709784007,721.94770229,0.00013759,2]
[331731209,1720709814980,250.0,0.00013045,2]
[331731210,1720709815774,219.92,0.00013045,2]
[331731211,1720709823403,348.87252662,0.00013759,2]